Cogmind - Beta 11 X7 @@@ ROGUE MODE // 2021.08.24 @ 17:02:33 Player: lsend Result: Destroyed by H-71 Marshal with Heavy Mass Driver Performance ------------- Evolutions (6) 3000 Regions Visited (20) 4000 Robots Destroyed (11) 55 Value Destroyed (319) 319 Prototype IDs (40) 800 Alien Tech Used (0) 0 Bonus (1157) 1157 TOTAL SCORE: 9331 Bonus ------- Follower Combat Kills 569 Aligned with FarCom 300 Met Data Miner 300 Friendly Fire -12 Cogmind --------- Core Integrity 0/1150 Matter 300/300 Energy 98/100 System Corruption 1% Temperature Cool (0) Movement Core (50) Location -4/Factory Parts ------- > --- POWER (2) -------- (None) > --- PROPULSION (6) --- (None) > --- UTILITY (9) ------ (None) > --- WEAPON (2) ------- (None) > --- INVENTORY (5) ---- Small Storage Unit Experimental Thermal Shield Advanced Shield Generator Advanced Datajack Peak State ------------ > --- POWER ------------ Backup Power I Micro Fission Core > --- PROPULSION ------- Field Propulsion Drive Field Propulsion Drive Nuclear Pulse Array Impulse Thruster Impulse Thruster > --- UTILITY ---------- Inertial Stasis Machine Improved Signal Interpreter Improved Terrain Scan Processor Layered Medium Armor Plating Light Regenerative Plating System Shield System Shield System Shield Advanced System Shield > --- WEAPON ----------- Maul Force Lance > --- INVENTORY -------- Small Storage Unit Experimental Thermal Shield Advanced Shield Generator Backup Laser I Advanced Datajack [Rating: 96] Favorites ----------- Power Micro Fission Core Engine Backup Power I Power Core Micro Fission Core Propulsion Field Propulsion Drive Treads Light Treads Leg Potential Leg Flight Unit Field Propulsion Drive Utility Improved Terrain Scan Processor Device Advanced Shield Generator Processor Improved Terrain Scan Processor Hackware Improved System Shield Protection Centrium Medium Armor Plating Weapon Backup Laser I Energy Gun Backup Laser I Special Weapon Remote Datajack Impact Weapon Maul Slashing Weapon Axe Piercing Weapon Spear Special Melee Weapon Advanced Datajack Build | -11 -10 -10 -10 -9 -8 -7 -7 -7 -7 -6 -6 -6 -6 -5 -5 -5 -5 -4 -4 -4 ------- Run | Scr Mat Min Exi Min Mat Fac Low Low Dat Pro Fac Ext Cet Fac Was Fac Upp Fac Was Fac Slots Evolved 12 | . . . . . 4 2 . . . . 2 . . 2 . . . 2 . . Power 1 | . . . . . . . . . . . . . . 1 . . . . . . Propulsion 4 | . . . . . 1 1 . . . . 1 . . 1 . . . . . . Utility 7 | . . . . . 3 1 . . . . 1 . . . . . . 2 . . Weapon . | . . . . . . . . . . . . . . . . . . . . . Parts Attached 76 | 2 2 4 1 . 3 . 1 . . 1 7 9 1 . . 18 . 4 1 22 Power 3 | . . . . . . . . . . . . 1 . . . 2 . . . . Engine 1 | . . . . . . . . . . . . . . . . 1 . . . . Core 2 | . . . . . . . . . . . . 1 . . . 1 . . . . Reactor . | . . . . . . . . . . . . . . . . . . . . . Propulsion 34 | 2 2 3 1 . 1 . 1 . . 1 1 4 1 . . 12 . . 1 4 Treads 6 | 2 2 2 . . . . . . . . . . . . . . . . . . Leg 9 | . . . 1 . . . 1 . . . . . . . . 6 . . 1 . Wheel . | . . . . . . . . . . . . . . . . . . . . . Hover . | . . . . . . . . . . . . . . . . . . . . . Flight 19 | . . 1 . . 1 . . . . 1 1 4 1 . . 6 . . . 4 Utility 26 | . . 1 . . 2 . . . . . 4 2 . . . 4 . 4 . 9 Device 7 | . . . . . 1 . . . . . 2 . . . . 2 . . . 2 Storage . | . . . . . . . . . . . . . . . . . . . . . Processor 3 | . . . . . 1 . . . . . . 1 . . . . . 1 . . Hackware 8 | . . 1 . . . . . . . . 2 . . . . . . 1 . 4 Protection 8 | . . . . . . . . . . . . 1 . . . 2 . 2 . 3 Artifact . | . . . . . . . . . . . . . . . . . . . . . Weapon 13 | . . . . . . . . . . . 2 2 . . . . . . . 9 Energy Gun 1 | . . . . . . . . . . . . . . . . . . . . 1 Energy Cannon . | . . . . . . . . . . . . . . . . . . . . . Ballistic Gun . | . . . . . . . . . . . . . . . . . . . . . Ballistic Cannon . | . . . . . . . . . . . . . . . . . . . . . Launcher . | . . . . . . . . . . . . . . . . . . . . . Special Weapon 2 | . . . . . . . . . . . . 2 . . . . . . . . Impact Weapon 2 | . . . . . . . . . . . . . . . . . . . . 2 Slashing Weapon 5 | . . . . . . . . . . . 1 . . . . . . . . 4 Piercing Weapon 2 | . . . . . . . . . . . 1 . . . . . . . . 1 Special Melee Weapon 1 | . . . . . . . . . . . . . . . . . . . . 1 Unidentified Prototypes 3 | . . . . . . . . . . . 1 . . . . 1 . . . 1 Parts Lost 42 | . . . . 1 . . 3 . . 1 . 4 7 . . 4 . 1 . 21 Power 3 | . . . . . . . . . . . . . 1 . . 1 . . . 1 Propulsion 18 | . . . . 1 . . 1 . . 1 . 1 5 . . 2 . 1 . 6 Utility 16 | . . . . . . . 2 . . . . 2 . . . 1 . . . 11 Weapon 5 | . . . . . . . . . . . . 1 1 . . . . . . 3 Highest Loss Streak 14 | . . . . 1 . . 2 . . 1 . 2 6 . . 3 . 1 . 14 Average Slot Usage (%) 40 | . 28 42 42 37 25 30 23 14 7 7 29 35 50 17 17 43 58 70 78 71 Core 1 | . . . . . . . . . . . . 1 4 . . . 5 5 5 4 Treads 1 | . 28 26 2 . . . . . . . . . . . . . . . . . Leg 2 | . . . 11 14 . . 3 6 . . . . . . . 4 . . . . Flight 9 | . . 2 14 9 9 7 2 . . . 5 5 17 . . 11 23 19 15 15 Device 2 | . . . . . 6 7 2 . . . 4 . . . . 2 5 5 5 4 Processor 7 | . . . . . 1 7 7 7 7 7 6 10 13 11 11 11 11 12 15 10 Hackware 8 | . . 14 14 14 9 7 7 . . . 7 10 6 5 5 5 5 6 10 13 Protection 2 | . . . . . . . . . . . . 1 2 . . 3 5 13 10 8 Piercing Weapon 1 | . . . . . . . . . . . 2 4 . . . . . . . 1 Naked Turns 13 | . . . . . . . . . . . . . . . . . . . . 13 Heaviest Build 30 | . . . . . 1 1 1 . . . 4 16 16 . . 17 17 30 22 27 Greatest Support 44 | 3 3 42 30 3 4 4 4 3 3 8 4 16 16 3 3 21 21 34 27 44 Greatest Overweight (x) 1 | . . . . . . . . . . . . 1 . . . 1 . . . . Average Overweight (x) . | . . . . . . . . . . . . . . . . . . . . . Largest Inventory Capacity 5 | 5 5 5 5 5 5 5 5 5 5 5 5 5 5 5 5 5 5 5 5 5 Average Capacity 5 | 5 5 5 5 5 5 5 5 5 5 5 5 5 5 5 5 5 5 5 5 5 Most Carried 5 | 1 1 5 5 5 5 4 4 4 4 5 5 5 5 5 5 5 2 3 3 5 Average Carried 4 | . 1 4 5 5 4 4 4 4 4 4 4 4 4 5 5 3 2 2 3 4 Final Capacity 5 | 5 5 5 5 5 5 5 5 5 5 5 5 5 5 5 5 5 5 5 5 5 Final Carried 5 | 1 1 5 5 5 4 4 4 4 4 5 5 3 5 5 5 2 2 3 3 4 Class Distribution -------------------- 60% | Mutant 28% | Hacker-Mutant 6% | Scavenger-Sprinter Dominant Class ---------------- Mutant | -10/Materials Mutant | -10/Mines Mutant | -10/Exiles Mutant | -9/Mines Mutant | -8/Materials Mutant | -7/Factory Mutant | -7/Lower Caves Mutant | -7/Lower Caves Mutant | -7/Data Miner Mutant | -6/Proximity Caves Hacker-Mutant | -6/Factory Hacker-Mutant | -6/Extension Scavenger-Sprinter | -6/Cetus Mutant | -5/Factory Mutant | -5/Waste Mutant | -5/Factory Mutant | -5/Upper Caves Mutant | -4/Factory Hacker-Mutant | -4/Waste Hacker-Mutant | -4/Factory Resources | -11 -10 -10 -10 -9 -8 -7 -7 -7 -7 -6 -6 -6 -6 -5 -5 -5 -5 -4 -4 -4 ----------- Run | Scr Mat Min Exi Min Mat Fac Low Low Dat Pro Fac Ext Cet Fac Was Fac Upp Fac Was Fac Matter Collected 800 | 212 . 35 . . . . . 18 . 18 . 150 . . . . 74 . . 293 Remotely . | . . . . . . . . . . . . . . . . . . . . . Salvage Created 492 | . . 39 . . . . . . . . . 335 . . . . . . . 118 Parts 30 | . . 6 . . . . . . . . . 11 . . . . . . . 13 Haulers Intercepted 2 | . . . . . . . . . . . . 2 . . . . . . . . Recyclers Shooed . | . . . . . . . . . . . . . . . . . . . . . Parts Field Recycled . | . . . . . . . . . . . . . . . . . . . . . Retrieved Matter . | . . . . . . . . . . . . . . . . . . . . . Parts Self-Destructed 6 | . . . . . . . . 1 . 4 . . . . . . 1 . . . Prevented 3 | . . . . . . . . 2 . . . . . . . . 1 . . . Kills | -11 -10 -10 -10 -9 -8 -7 -7 -7 -7 -6 -6 -6 -6 -5 -5 -5 -5 -4 -4 -4 ------- Run | Scr Mat Min Exi Min Mat Fac Low Low Dat Pro Fac Ext Cet Fac Was Fac Upp Fac Was Fac Combat Hostiles Destroyed 8 | . . 2 . . . . . . . . . 2 . . . . . . . 4 Melee 8 | . . 2 . . . . . . . . . 2 . . . . . . . 4 Classes Destroyed 6 | . . 1 . . . . . . . . . 4 . . . . . . . 1 Builder 1 | . . . . . . . . . . . . 1 . . . . . . . . Hauler 2 | . . . . . . . . . . . . 2 . . . . . . . . Swarmer 2 | . . 2 . . . . . . . . . . . . . . . . . . Cutter 4 | . . . . . . . . . . . . . . . . . . . . 4 Grunt 1 | . . . . . . . . . . . . 1 . . . . . . . . Sentry 1 | . . . . . . . . . . . . 1 . . . . . . . . Best Kill Streak 4 | . . 1 . . . . . . . . . 1 . . . . . . . 4 Combat Bots Only 4 | . . 1 . . . . . . . . . 1 . . . . . . . 4 Max Kills in Single Turn 1 | . . 1 . . . . . . . . . 1 . . . . . . . 1 Gunslinging . | . . . . . . . . . . . . . . . . . . . . . Exploded . | . . . . . . . . . . . . . . . . . . . . . Melee 1 | . . 1 . . . . . . . . . 1 . . . . . . . 1 Uniques/NPCs Destroyed . | . . . . . . . . . . . . . . . . . . . . . Combat | -11 -10 -10 -10 -9 -8 -7 -7 -7 -7 -6 -6 -6 -6 -5 -5 -5 -5 -4 -4 -4 -------- Run | Scr Mat Min Exi Min Mat Fac Low Low Dat Pro Fac Ext Cet Fac Was Fac Upp Fac Was Fac Damage Taken 6663 | . 15 247 47 73 76 34 345 14 . 201 . 476 523 . . 1742 15 151 . 2704 Core 3192 | . 7 67 15 12 58 20 251 14 . 181 . 363 260 . . 780 . 17 . 1147 Absorbed by Shields 263 | . . . . . . . . . . . . 11 27 . . 90 5 54 . 76 Core Remaining (%) 54 | 100 . . . 59 89 . . . . 33 . . 26 . . . 22 . . . Volleys Fired . | . . . . . . . . . . . . . . . . . . . . . Largest . | . . . . . . . . . . . . . . . . . . . . . Hottest . | . . . . . . . . . . . . . . . . . . . . . Shots Fired . | . . . . . . . . . . . . . . . . . . . . . Gun . | . . . . . . . . . . . . . . . . . . . . . Cannon . | . . . . . . . . . . . . . . . . . . . . . Launcher . | . . . . . . . . . . . . . . . . . . . . . Special . | . . . . . . . . . . . . . . . . . . . . . Kinetic . | . . . . . . . . . . . . . . . . . . . . . Thermal . | . . . . . . . . . . . . . . . . . . . . . Explosive . | . . . . . . . . . . . . . . . . . . . . . Electromagnetic . | . . . . . . . . . . . . . . . . . . . . . Robot Hit Streak . | . . . . . . . . . . . . . . . . . . . . . Robot Miss Streak . | . . . . . . . . . . . . . . . . . . . . . Penetration Max . | . . . . . . . . . . . . . . . . . . . . . Secondary Targets . | . . . . . . . . . . . . . . . . . . . . . Shots Hit Robots 24 | . . . . . . . . . . . . 14 . . . . . . . 10 Core Hits 14 | . . 1 . . . . . . . . . 8 . . . . . . . 5 Critical Kills . | . . . . . . . . . . . . . . . . . . . . . Critical Parts Destroyed . | . . . . . . . . . . . . . . . . . . . . . Critical Strikes 2 | . . . . . . . . . . . . . . . . . . . . 2 Sever 1 | . . . . . . . . . . . . . . . . . . . . 1 Puncture 1 | . . . . . . . . . . . . . . . . . . . . 1 Melee Attacks 36 | . . . . . . . . . . . . 17 . . . . . . . 19 Impact 2 | . . . . . . . . . . . . . . . . . . . . 2 Slashing 4 | . . . . . . . . . . . . . . . . . . . . 4 Piercing 29 | . . . . . . . . . . . . 17 . . . . . . . 12 Sneak Attacks 5 | . . . . . . . . . . . . 5 . . . . . . . . Combat Hostiles . | . . . . . . . . . . . . . . . . . . . . . Follow-up Attacks 1 | . . . . . . . . . . . . . . . . . . . . 1 Damage Inflicted 1104 | . . 18 7 13 . . . . . . . 746 . . . . . . . 320 Guns . | . . . . . . . . . . . . . . . . . . . . . Cannons . | . . . . . . . . . . . . . . . . . . . . . Explosions . | . . . . . . . . . . . . . . . . . . . . . Melee 1066 | . . . . . . . . . . . . 746 . . . . . . . 320 Ramming 38 | . . 18 7 13 . . . . . . . . . . . . . . . . Kinetic . | . . . . . . . . . . . . . . . . . . . . . Thermal . | . . . . . . . . . . . . . . . . . . . . . Explosive . | . . . . . . . . . . . . . . . . . . . . . Electromagnetic . | . . . . . . . . . . . . . . . . . . . . . Impact 56 | . . . . . . . . . . . . . . . . . . . . 56 Slashing 46 | . . . . . . . . . . . . . . . . . . . . 46 Piercing 964 | . . . . . . . . . . . . 746 . . . . . . . 218 Highest Corruption 16 | . . . 1 1 . 1 1 1 1 1 . . . . 8 16 16 1 1 1 Average Corruption 5 | . . . 1 1 . 1 1 1 1 1 . . . . 8 13 16 1 1 1 Corruption Purged . | . . . . . . . . . . . . . . . . . . . . . Effects 34 | . . . . 1 . . . . . 1 . . . . 3 17 8 . 1 3 Message Errors 8 | . . . . 1 . . . . . 1 . . . . 1 1 2 . . 2 Matter Fused 7 | . . . . . . . . . . . . . . . . 4 3 . . . Heat Flow Errors 7 | . . . . . . . . . . . . . . . 2 5 . . . . Energy Discharges 5 | . . . . . . . . . . . . . . . . 2 2 . 1 . Parts Rejected 1 | . . . . . . . . . . . . . . . . 1 . . . . Data Loss (minor) 3 | . . . . . . . . . . . . . . . . 1 1 . . 1 Alerts 2 | . . . . . . . . . . . . . . . . 2 . . . . Misdirections 1 | . . . . . . . . . . . . . . . . 1 . . . . Overload Shots . | . . . . . . . . . . . . . . . . . . . . . Overflow Damage 163 | . . . 3 . . . . . . . . 119 . . . . . . . 41 Projectiles . | . . . . . . . . . . . . . . . . . . . . . Explosions . | . . . . . . . . . . . . . . . . . . . . . Melee 163 | . . . 3 . . . . . . . . 119 . . . . . . . 41 Knockbacks . | . . . . . . . . . . . . . . . . . . . . . Impact . | . . . . . . . . . . . . . . . . . . . . . Kinetic . | . . . . . . . . . . . . . . . . . . . . . Secondary . | . . . . . . . . . . . . . . . . . . . . . Self-Inflicted Damage 11 | . . . 5 6 . . . . . . . . . . . . . . . . Shots . | . . . . . . . . . . . . . . . . . . . . . Rammed 39 | . . 37 1 1 . . . . . . . . . . . . . . . . Targets Rammed 41 | . . 39 1 1 . . . . . . . . . . . . . . . . Kicked . | . . . . . . . . . . . . . . . . . . . . . Crushed 2 | . . 2 . . . . . . . . . . . . . . . . . . Highest Temperature 234 | . . . . . . . . . . . . . . . 115 234 2 . . 11 Average Temperature 75 | . . . . . . . . . . . . . . . 61 90 2 . . 6 Received Heat Transfer 421 | . . . . 18 27 18 . . . . . 99 27 . . 68 20 6 . 138 Siege Activations . | . . . . . . . . . . . . . . . . . . . . . Robots Corrupted . | . . . . . . . . . . . . . . . . . . . . . Combat Hostiles . | . . . . . . . . . . . . . . . . . . . . . Parts Fried . | . . . . . . . . . . . . . . . . . . . . . Impact Corruptions 4 | . . . 4 . . . . . . . . . . . . . . . . . Robots Melted . | . . . . . . . . . . . . . . . . . . . . . Combat Hostiles . | . . . . . . . . . . . . . . . . . . . . . Parts Melted . | . . . . . . . . . . . . . . . . . . . . . Heat Transferred . | . . . . . . . . . . . . . . . . . . . . . Parts Sabotaged . | . . . . . . . . . . . . . . . . . . . . . Parts Stolen 1 | . . . . . . . . 1 . . . . . . . . . . . . Parts Stripped . | . . . . . . . . . . . . . . . . . . . . . Power Chain Reactions . | . . . . . . . . . . . . . . . . . . . . . Missiles Intercepted . | . . . . . . . . . . . . . . . . . . . . . Alert | -11 -10 -10 -10 -9 -8 -7 -7 -7 -7 -6 -6 -6 -6 -5 -5 -5 -5 -4 -4 -4 ------- Run | Scr Mat Min Exi Min Mat Fac Low Low Dat Pro Fac Ext Cet Fac Was Fac Upp Fac Was Fac Peak Influence 548 | . 30 91 . 45 121 191 . . . . 49 313 213 90 46 308 . 215 116 548 Initial 184 | . . 11 . . 13 68 . . . . 19 23 175 85 31 18 . 184 71 81 Average 116 | . 13 46 . 26 56 109 . . . . 31 128 163 88 30 111 . 191 93 198 Maximum Alert Level 3 | . . . . . . . . . . . . 1 1 . . 1 . 1 . 3 Low Security (%) 82 | 100 100 100 . 100 100 100 . . . . 100 78 94 100 100 79 . 83 100 50 Level 1 16 | . . . . . . . . . . . . 21 5 . . 20 . 16 . 42 Level 2 1 | . . . . . . . . . . . . . . . . . . . . 6 Level 3 . | . . . . . . . . . . . . . . . . . . . . . Level 4 . | . . . . . . . . . . . . . . . . . . . . . Level 5 . | . . . . . . . . . . . . . . . . . . . . . High Security . | . . . . . . . . . . . . . . . . . . . . . Max Security . | . . . . . . . . . . . . . . . . . . . . . Squads Dispatched 12 | . 1 1 . . 1 2 . . . . . 1 2 . . 2 . . . 2 Investigation 4 | . . 1 . . . . . . . . . . 2 . . 1 . . . . Extermination . | . . . . . . . . . . . . . . . . . . . . . Reinforcement 8 | . 1 . . . 1 2 . . . . . 1 . . . 1 . . . 2 Assault . | . . . . . . . . . . . . . . . . . . . . . Garrison . | . . . . . . . . . . . . . . . . . . . . . Intercept . | . . . . . . . . . . . . . . . . . . . . . Construction Impeded 1 | . . . . . . . . . . . . 1 . . . . . . . . Haulers Reinforced . | . . . . . . . . . . . . . . . . . . . . . Active Scanning Responses . | . . . . . . . . . . . . . . . . . . . . . Cargo Convoy Interrupts . | . . . . . . . . . . . . . . . . . . . . . Stealth | -11 -10 -10 -10 -9 -8 -7 -7 -7 -7 -6 -6 -6 -6 -5 -5 -5 -5 -4 -4 -4 --------- Run | Scr Mat Min Exi Min Mat Fac Low Low Dat Pro Fac Ext Cet Fac Was Fac Upp Fac Was Fac Distress Signals 8 | . 1 . . . 2 . . . . . . 4 1 . . . . . . . Communications Jammed . | . . . . . . . . . . . . . . . . . . . . . Distress Signals . | . . . . . . . . . . . . . . . . . . . . . Times Spotted 192 | . 5 5 3 4 8 7 10 4 . 2 1 25 17 . 5 29 4 7 6 50 Peak Tracking Total 14 | . 9 3 11 2 7 4 5 5 . 2 1 8 12 . 5 11 4 8 6 14 Tactical Retreats 40 | . . 1 1 1 3 1 2 1 . 1 . 5 3 . . 7 3 . . 11 Traps | -11 -10 -10 -10 -9 -8 -7 -7 -7 -7 -6 -6 -6 -6 -5 -5 -5 -5 -4 -4 -4 ------- Run | Scr Mat Min Exi Min Mat Fac Low Low Dat Pro Fac Ext Cet Fac Was Fac Upp Fac Was Fac Traps Triggered 9 | . 1 . . . . 1 . . . . . 2 . 1 . 2 . 1 . 1 Indirectly . | . . . . . . . . . . . . . . . . . . . . . Trap Hack Attempts . | . . . . . . . . . . . . . . . . . . . . . Triggered . | . . . . . . . . . . . . . . . . . . . . . Disarmed . | . . . . . . . . . . . . . . . . . . . . . Reprogrammed . | . . . . . . . . . . . . . . . . . . . . . Reused . | . . . . . . . . . . . . . . . . . . . . . Traps Extracted . | . . . . . . . . . . . . . . . . . . . . . Installed . | . . . . . . . . . . . . . . . . . . . . . Triggered 4 | . . . . . . . . 2 . . . . . . . . 2 . . . Machines | -11 -10 -10 -10 -9 -8 -7 -7 -7 -7 -6 -6 -6 -6 -5 -5 -5 -5 -4 -4 -4 ---------- Run | Scr Mat Min Exi Min Mat Fac Low Low Dat Pro Fac Ext Cet Fac Was Fac Upp Fac Was Fac Machines Disabled 2 | . . . . . . . . . . . . 1 1 . . . . . . . Max in Single Turn . | . . . . . . . . . . . . . . . . . . . . . Machines Sabotaged . | . . . . . . . . . . . . . . . . . . . . . Garrisons Compromised . | . . . . . . . . . . . . . . . . . . . . . Overloaded Fab Kills . | . . . . . . . . . . . . . . . . . . . . . Fab Network Shutdowns 1 | . . . . . . . . . . . . . . . . . . . . 1 Hacking | -11 -10 -10 -10 -9 -8 -7 -7 -7 -7 -6 -6 -6 -6 -5 -5 -5 -5 -4 -4 -4 --------- Run | Scr Mat Min Exi Min Mat Fac Low Low Dat Pro Fac Ext Cet Fac Was Fac Upp Fac Was Fac Machines Accessed 35 | . 1 1 2 . 2 4 . . 4 . 2 5 2 1 . 2 . 4 . 5 Terminals 18 | . . . . . 1 3 . . . . 1 5 2 . . 2 . 1 . 3 Fabricators 4 | . . . . . . . . . . . . . . 1 . . . 2 . 1 Repair Stations 2 | . . . . . . 1 . . . . . . . . . . . 1 . . Recycling Units 4 | . 1 . . . 1 . . . . . 1 . . . . . . . . 1 Scanalyzers . | . . . . . . . . . . . . . . . . . . . . . Garrison Access . | . . . . . . . . . . . . . . . . . . . . . Total Hacks 106 | . 1 1 4 . 5 6 . . 29 . 3 18 6 3 . 4 . 10 . 16 Successful 64 | . 1 1 4 . 3 2 . . 29 . 1 7 2 2 . . . 5 . 7 Failed 42 | . . . . . 2 4 . . . . 2 11 4 1 . 4 . 5 . 9 Catastrophic 13 | . . . . . . 1 . . . . 1 1 1 . . 3 . 2 . 4 Database Lockouts . | . . . . . . . . . . . . . . . . . . . . . Manual 13 | . . . 1 . . . . . . . . 10 1 . . . . . . 1 Terminals 50 | . . . . . 3 4 . . . . 1 18 6 . . 4 . 2 . 12 Fabricators 11 | . . . . . . . . . . . . . . 3 . . . 5 . 3 Repair Stations 5 | . . . . . . 2 . . . . . . . . . . . 3 . . Recycling Units 6 | . 1 . . . 2 . . . . . 2 . . . . . . . . 1 Scanalyzers . | . . . . . . . . . . . . . . . . . . . . . Garrison Access . | . . . . . . . . . . . . . . . . . . . . . Terminal Hacks 47 | . . 1 4 . 2 2 . . 29 . . 4 2 . . . . . . 3 Record 15 | . . . 3 . . . . . 11 . . . 1 . . . . . . . Part Schematic 10 | . . . . . . . . . 9 . . 1 . . . . . . . . Robot Schematic 6 | . . . . . . . . . 6 . . . . . . . . . . . Prototype ID Bank 3 | . . . . . . . . . 3 . . . . . . . . . . . Open Door 2 | . . 1 . . . . . . . . . . 1 . . . . . . . Branch Access Points 1 | . . . . . . 1 . . . . . . . . . . . . . . Alert Level 1 | . . . . . . . . . . . . . . . . . . . . 1 Unreport Threat 2 | . . . . . . . . . . . . . . . . . . . . 2 Locate Traps 2 | . . . . . 1 . . . . . . 1 . . . . . . . . Transport Status 1 | . . . . . . 1 . . . . . . . . . . . . . . Zone Layout 3 | . . . . . 1 . . . . . . 2 . . . . . . . . EX-Prototype ID Bank 1 | . . . 1 . . . . . . . . . . . . . . . . . Fabricator Hacks 8 | . . . . . . . . . . . . . . 2 . . . 4 . 2 Load Schematic 4 | . . . . . . . . . . . . . . 1 . . . 2 . 1 Build 4 | . . . . . . . . . . . . . . 1 . . . 2 . 1 Repair Station Hacks 1 | . . . . . . . . . . . . . . . . . . 1 . . Refit 1 | . . . . . . . . . . . . . . . . . . 1 . . Recycling Unit Hacks 4 | . 1 . . . 1 . . . . . 1 . . . . . . . . 1 Retrieve Components 4 | . 1 . . . 1 . . . . . 1 . . . . . . . . 1 Scanalyzer . | . . . . . . . . . . . . . . . . . . . . . Garrison Access Hacks . | . . . . . . . . . . . . . . . . . . . . . Unauthorized Hacks 4 | . . . . . . . . . . . . 3 . . . . . . . 1 Terminals 4 | . . . . . . . . . . . . 3 . . . . . . . 1 Assimilate 1 | . . . . . . . . . . . . . . . . . . . . 1 Botnet 3 | . . . . . . . . . . . . 3 . . . . . . . . Fabricators . | . . . . . . . . . . . . . . . . . . . . . Repair Stations . | . . . . . . . . . . . . . . . . . . . . . Recycling Units . | . . . . . . . . . . . . . . . . . . . . . Scanalyzers . | . . . . . . . . . . . . . . . . . . . . . Garrison Access . | . . . . . . . . . . . . . . . . . . . . . Data Cores Recovered . | . . . . . . . . . . . . . . . . . . . . . Used . | . . . . . . . . . . . . . . . . . . . . . Hacking Detections 23 | . . . . . 1 3 . . . . 2 5 2 1 . 2 . 2 . 5 Full Trace Events 3 | . . . . . . . . . . . . . 2 . . 1 . . . . Feedback Events . | . . . . . . . . . . . . . . . . . . . . . Feedback Blocked . | . . . . . . . . . . . . . . . . . . . . . Robot Schematics Acquired 6 | . . . . . . . . . 6 . . . . . . . . . . . Robots Built . | . . . . . . . . . . . . . . . . . . . . . Matter . | . . . . . . . . . . . . . . . . . . . . . Time . | . . . . . . . . . . . . . . . . . . . . . Total Robot Build Rating . | . . . . . . . . . . . . . . . . . . . . . Part Schematics Acquired 10 | . . . . . . . . . 9 . . 1 . . . . . . . . Parts Built 1 | . . . . . . . . . . . . . . . . . . . . 1 Matter 1239 | . . . . . . . . . . . . . . 285 . . . 669 . 285 Time 482 | . . . . . . . . . . . . . . 152 . . . 254 . 76 Total Part Build Rating 5 | . . . . . . . . . . . . . . . . . . . . 5 Parts Repaired . | . . . . . . . . . . . . . . . . . . . . . Time . | . . . . . . . . . . . . . . . . . . . . . Parts Recycled . | . . . . . . . . . . . . . . . . . . . . . Recycled Matter . | . . . . . . . . . . . . . . . . . . . . . Retrieved Matter . | . . . . . . . . . . . . . . . . . . . . . Retrieved Components 7 | . 2 . . . 2 . . . . . 2 . . . . . . . . 1 Parts Scanalyzed . | . . . . . . . . . . . . . . . . . . . . . Part Schematics Acquired . | . . . . . . . . . . . . . . . . . . . . . Parts Damaged . | . . . . . . . . . . . . . . . . . . . . . Bothacking | -11 -10 -10 -10 -9 -8 -7 -7 -7 -7 -6 -6 -6 -6 -5 -5 -5 -5 -4 -4 -4 ------------ Run | Scr Mat Min Exi Min Mat Fac Low Low Dat Pro Fac Ext Cet Fac Was Fac Upp Fac Was Fac Used RIF Installer . | . . . . . . . . . . . . . . . . . . . . . Robots Hacked 1 | . . . . . . . . . . . . . . . . . . . . 1 Non-combat . | . . . . . . . . . . . . . . . . . . . . . Combat 1 | . . . . . . . . . . . . . . . . . . . . 1 Robot Hacks Applied 1 | . . . . . . . . . . . . . . . . . . . . 1 parse_system 1 | . . . . . . . . . . . . . . . . . . . . 1 Relay Couplers Released . | . . . . . . . . . . . . . . . . . . . . . Robots Rewired 6 | . . . . . . . . . . . . 6 . . . . . . . . Allies Hacked 2 | . . . . . . . . . . . . . . . . . 2 . . . Hacks Repelled . | . . . . . . . . . . . . . . . . . . . . . Allies | -11 -10 -10 -10 -9 -8 -7 -7 -7 -7 -6 -6 -6 -6 -5 -5 -5 -5 -4 -4 -4 -------- Run | Scr Mat Min Exi Min Mat Fac Low Low Dat Pro Fac Ext Cet Fac Was Fac Upp Fac Was Fac Total Allies 25 | . . . . . . . . . . 1 . 16 . . 1 . 3 . . 4 Largest Group 7 | . . . . . . . . . . 1 . 7 7 . 1 . 3 . . 3 Highest-Rated Group 314 | . . . . . . . . . . 95 . 314 314 . 31 . 243 . . 138 Highest-Rated Ally 165 | . . . . . . . . . . 95 . 156 156 . 31 . 165 . . 46 Total Orders . | . . . . . . . . . . . . . . . . . . . . . Ally Attacks 156 | . . . . . . . . . . 6 . 75 35 . 8 . 4 . . 28 Total Damage 3365 | . . . . . . . . . . 138 . 1469 859 . 107 . 163 . . 629 Kills 23 | . . . . . . . . . . 1 . 11 3 . . . 1 . . 7 Allies Corrupted 1 | . . . . . . . . . . . . 1 . . . . . . . . Allies Melted . | . . . . . . . . . . . . . . . . . . . . . Intel | -11 -10 -10 -10 -9 -8 -7 -7 -7 -7 -6 -6 -6 -6 -5 -5 -5 -5 -4 -4 -4 ------- Run | Scr Mat Min Exi Min Mat Fac Low Low Dat Pro Fac Ext Cet Fac Was Fac Upp Fac Was Fac Robot Analysis Total . | . . . . . . . . . . . . . . . . . . . . . Derelict Logs Recovered 6 | . . 2 . 1 . . 1 1 . 1 . . . . . . . . . . Drone Launches . | . . . . . . . . . . . . . . . . . . . . . Drone Recoveries . | . . . . . . . . . . . . . . . . . . . . . Exploration | -11 -10 -10 -10 -9 -8 -7 -7 -7 -7 -6 -6 -6 -6 -5 -5 -5 -5 -4 -4 -4 ------------- Run | Scr Mat Min Exi Min Mat Fac Low Low Dat Pro Fac Ext Cet Fac Was Fac Upp Fac Was Fac Turns Passed 3575 | 27 53 146 298 99 75 178 91 106 43 189 154 755 109 41 68 372 190 105 46 430 Spaces Moved 6796 | 46 100 149 583 176 176 416 191 209 85 345 348 1046 198 82 122 822 392 286 113 911 Core 3197 | 46 100 148 578 176 2 . 127 209 85 323 27 860 39 82 122 216 . . . 57 Treads 1 | . . 1 . . . . . . . . . . . . . . . . . . Legs 5 | . . . 5 . . . . . . . . . . . . . . . . . Wheels . | . . . . . . . . . . . . . . . . . . . . . Hover . | . . . . . . . . . . . . . . . . . . . . . Flight 3593 | . . . . . 174 416 64 . . 22 321 186 159 . . 606 392 286 113 854 Fastest Speed 26 | 50 50 50 50 50 40 40 40 50 50 50 40 26 26 50 50 37 39 34 37 30 Average Speed 43 | 50 50 50 50 50 40 40 46 50 50 50 40 46 33 50 50 41 39 34 37 37 Slowest Speed 152 | 50 50 152 90 50 50 40 50 50 50 55 50 100 50 50 50 120 39 39 37 50 Overloaded Moves . | . . . . . . . . . . . . . . . . . . . . . Propulsion Burnouts . | . . . . . . . . . . . . . . . . . . . . . Robots Hopped 54 | . . . . . 3 10 . . . . . 3 3 . . 18 2 . 3 12 Cave-ins Triggered . | . . . . . . . . . . . . . . . . . . . . . Exploration Rate (%) 41 | 3 30 31 90 45 21 12 37 42 70 53 8 86 68 3 86 30 43 10 75 27 Regions Visited 20 Branch Regions 10 Pre-discovered Areas 2 | . . . 1 . . . . . 1 . . . . . . . . . . . Known Exits Taken 4 | . . . . . . 1 . 1 . . 1 . 1 . . . . . . . Unknown Exits Taken 12 | 1 1 1 1 1 1 . 1 . 1 1 . 1 . . . 1 1 . . . Scrap Searched 4 | . . . . . . . 1 1 . 2 . . . . . . . . . . Spaces Dug . | . . . . . . . . . . . . . . . . . . . . . Terrain Destroyed . | . . . . . . . . . . . . . . . . . . . . . Melee . | . . . . . . . . . . . . . . . . . . . . . Projectile . | . . . . . . . . . . . . . . . . . . . . . AOE . | . . . . . . . . . . . . . . . . . . . . . Terrain Rammed 1 | . . . 1 . . . . . . . . . . . . . . . . . Walls Destroyed . | . . . . . . . . . . . . . . . . . . . . . Machines Disabled . | . . . . . . . . . . . . . . . . . . . . . Actions | -11 -10 -10 -10 -9 -8 -7 -7 -7 -7 -6 -6 -6 -6 -5 -5 -5 -5 -4 -4 -4 --------- Run | Scr Mat Min Exi Min Mat Fac Low Low Dat Pro Fac Ext Cet Fac Was Fac Upp Fac Was Fac Total 7246 | 48 101 197 586 186 176 416 191 209 84 359 357 1282 238 82 128 827 426 291 113 949 Wait 287 | . . . . 10 . 11 . 1 . 13 . 160 39 . 7 1 37 . 2 6 Move 6676 | 45 99 148 582 175 169 397 190 208 84 344 347 1039 191 82 121 787 387 286 107 888 Hop 48 | . . . . . 3 8 . . . . . 3 3 . . 16 2 . 2 11 Pick Up 13 | 1 . 4 . . . . . . . 1 1 . 2 . . 2 . . . 2 Fast Attach 57 | 2 2 2 1 . 2 . 1 . . 1 5 6 1 . . 13 . 4 1 16 Attach 14 | . . . . . 1 . . . . . 2 3 . . . 5 . . . 3 Detach 5 | . . . . . . . . . . . 1 1 1 . . . . 1 . 1 Swap 5 | . . 2 . . . . . . . . . . . . . . . . . 3 Drop 11 | . . 2 1 . 1 . . . . . 1 . 1 . . 3 . . 1 1 Fire . | . . . . . . . . . . . . . . . . . . . . . Melee 35 | . . . . . . . . . . . . 17 . . . . . . . 18 Ram 3 | . . . 2 1 . . . . . . . . . . . . . . . . Kick . | . . . . . . . . . . . . . . . . . . . . . Crush 39 | . . 39 . . . . . . . . . . . . . . . . . . Escape Stasis 30 | . . . . . . . . . . . . 30 . . . . . . . . Rewire 23 | . . . . . . . . . . . . 23 . . . . . . . . Trap . | . . . . . . . . . . . . . . . . . . . . . Miscellaneous . | . . . . . . . . . . . . . . . . . . . . . Route ------- -11/Scrapyard -10/Materials -10/Mines (discovered 2 exits: [*Mat] / *Exi) -10/Exiles -9/Mines -8/Materials (discovered 2 exits: *Fac / Sto) -7/Factory (discovered 3 exits: *Fac / *Low x2) -7/Lower Caves -7/Lower Caves (discovered 2 exits: *Fac / *Dat) -7/Data Miner -6/Proximity Caves -6/Factory (discovered 4 exits: Fac x2 / *Ext x2) -6/Extension (discovered 2 exits: *Fac / *Cet) -6/Cetus -5/Factory -5/Waste -5/Factory -5/Upper Caves -4/Factory -4/Waste -4/Factory (discovered 2 exits: *Res x2) History --------- Turn | Location | Event 7 | -11/Scrapyard | Discovered new exit (range 15) 28 | -11/Scrapyard | Entered Materials 79 | -10/Materials | Discovered new exit (range 6) 81 | -10/Materials | Entered Mines 83 | -10/Mines | Met a Derelict shopkeep closing up shop 104 | -10/Mines | Learned 2 Materials zone layouts 105 | -10/Mines | Learned Materials terminal intel 111 | -10/Mines | Discovered new exit (range 12) 225 | -10/Mines | Deemed a non-threat by the Exiles lab entrance 225 | -10/Mines | Discovered new exit (range 5) 227 | -10/Mines | Entered Exiles 240 | -10/Exiles | Met 8R-AWN 249 | -10/Exiles | Met EX-HEX 264 | -10/Exiles | Met EX-BIN 269 | -10/Exiles | Aligned with FarCom system 270 | -10/Exiles | Given EX-Vault access code 281 | -10/Exiles | Opened EX-Vault 285 | -10/Exiles | Found Potential Leg 297 | -10/Exiles | Warned to stay clear of 0b10 Research branches 306 | -10/Exiles | Build established: Mutant 311 | -10/Exiles | Met EX-DEC 314 | -10/Exiles | Learned location of Zion (-6) 414 | -10/Exiles | Visited The Gauntlet 478 | -10/Exiles | Discovered new exit (range 14) 504 | -10/Exiles | Attacked by the Exiles 525 | -10/Exiles | Left Exiles lab with Potential Leg 525 | -10/Exiles | Entered Mines 545 | -9/Mines | Learned Materials emergency access door positions 616 | -9/Mines | Discovered new exit (range 11) 624 | -9/Mines | Entered Materials 624 | -8/Materials | Evolved 4 slots: Propulsion x1, Utility x3 625 | -8/Materials | Identified exit to Storage 627 | -8/Materials | Loaded intel: 12 terminal locations 693 | -8/Materials | Discovered new exit (range 9) 699 | -8/Materials | Entered Factory 699 | -7/Factory | Evolved 2 slots: Propulsion x1, Utility x1 835 | -7/Factory | Discovered new exit (range 11) 837 | -7/Factory | Identified exit to Lower Caves 877 | -7/Factory | Entered Lower Caves 897 | -7/Lower Caves | Learned 12 Factory zone layouts 965 | -7/Lower Caves | Discovered new exit (range 7) 968 | -7/Lower Caves | Entered another Lower Caves area 978 | -7/Lower Caves | Identified exit to Data Miner 980 | -7/Lower Caves | Spotted B-75 Beast 983 | -7/Lower Caves | Discovered new exit (range 15) 1032 | -7/Lower Caves | Encountered a Warlord checkpoint 1061 | -7/Lower Caves | Spotted 5H-9C7(f) 1063 | -7/Lower Caves | Spotted LA-3G4(f) 1063 | -7/Lower Caves | Spotted 6O-ENI(f) 1064 | -7/Lower Caves | Encountered a Master Thief 1064 | -7/Lower Caves | Encountered a Master Thief 1064 | -7/Lower Caves | Encountered a Master Thief 1064 | -7/Lower Caves | Spotted LN-3Y2(f) 1065 | -7/Lower Caves | Encountered a Master Thief 1065 | -7/Lower Caves | Mak. Leg stolen by Master Thief 1074 | -7/Lower Caves | Entered Data Miner 1074 | -7/Data Miner | Discovered new exit (range 6) 1084 | -7/Data Miner | Met Data Miner 1095 | -7/Data Miner | Learned location of Section 7 (-2) 1095 | -7/Data Miner | Acquired the access code to Warlord's prototype stash 1103 | -7/Data Miner | Received God Mode back door access code from Data Miner 1117 | -7/Data Miner | Entered Proximity Caves 1151 | -6/Proximity Caves | Learned 4 Factory zone layouts 1167 | -6/Proximity Caves | Escorted by Enhanced Grunt 1191 | -6/Proximity Caves | Core integrity fell below 50% 1193 | -6/Proximity Caves | Found Prototype Device 1303 | -6/Proximity Caves | Discovered new exit (range 9) 1306 | -6/Proximity Caves | Entered Factory 1306 | -6/Factory | Evolved 2 slots: Propulsion x1, Utility x1 1306 | -6/Factory | Identified Exp. Thermal Shield 1307 | -6/Factory | Identified exit to Factory 1307 | -6/Factory | Identified exit to Extension 1460 | -6/Factory | Entered Extension 1476 | -6/Extension | Rescued a captive Derelict 1476 | -6/Extension | Rescued a captive Derelict 1496 | -6/Extension | Rescued a captive Derelict 1496 | -6/Extension | Rescued a captive Derelict 1506 | -6/Extension | Rescued a captive Derelict 1645 | -6/Extension | Build established: Hacker-Mutant 1658 | -6/Extension | Spotted B-75 Beast 1989 | -6/Extension | Spotted B-75 Beast 2009 | -6/Extension | Rescued A7 2012 | -6/Extension | Rescued a captive Derelict 2012 | -6/Extension | Rescued a captive Derelict 2024 | -6/Extension | Rescued a captive Derelict 2025 | -6/Extension | Rescued a captive Derelict 2126 | -6/Extension | Discovered exit to Factory (range 10) 2126 | -6/Extension | Discovered new exit (range 6) 2215 | -6/Extension | Entered Cetus 2215 | -6/Cetus | Accompanied by 7 allies (A7) 2220 | -6/Cetus | Acquired a Cetus Manufacturing Module code from A7 2227 | -6/Cetus | Spotted Cetus Guard 2228 | -6/Cetus | Spotted Cetus Guard 2237 | -6/Cetus | Spotted Cetus Guard 2237 | -6/Cetus | Spotted Cetus Guard 2245 | -6/Cetus | Allies destroyed Cetus Guard 2257 | -6/Cetus | Allies destroyed Cetus Guard 2276 | -6/Cetus | Started Cetus Manufacturing Module 2288 | -6/Cetus | Incoming investigation squad redirected 2295 | -6/Cetus | Cetus Manufacturing Module disabled 2296 | -6/Cetus | Core integrity fell below 50% 2317 | -6/Cetus | Discovered exit to Factory (range 15) 2324 | -6/Cetus | Entered Factory 2324 | -5/Factory | Evolved 2 slots: Power x1, Propulsion x1 2336 | -5/Factory | Lost 6 parts (1p4n1w) 2365 | -5/Factory | Sucked down chute 2365 | -5/Factory | Entered Waste 2366 | -5/Waste | Met a frightened Derelict 2371 | -5/Waste | Spotted C-40 Crusher 2380 | -5/Waste | EMP discharged 2383 | -5/Waste | Spotted C-40 Crusher 2383 | -5/Waste | Spotted C-40 Crusher 2388 | -5/Waste | Spotted C-40 Crusher 2393 | -5/Waste | Spotted C-40 Crusher 2393 | -5/Waste | Spotted C-40 Crusher 2425 | -5/Waste | Discovered new exit (range 16) 2433 | -5/Waste | Entered Factory 2468 | -5/Factory | System corruption reached 10% 2547 | -5/Factory | Incoming investigation squad redirected 2618 | -5/Factory | Core integrity fell below 50% 2630 | -5/Factory | Lost 3 parts (2n1u) 2799 | -5/Factory | Discovered new exit (range 9) 2805 | -5/Factory | Entered Upper Caves 2896 | -5/Upper Caves | Build established: Mutant 2907 | -5/Upper Caves | ME-RLN showed up to help 2909 | -5/Upper Caves | ME-RLN revealed a hidden path 2934 | -5/Upper Caves | ME-RLN assimilated hostile G-50 Soldier 2995 | -5/Upper Caves | Entered Factory 2995 | -4/Factory | Evolved 2 slots: Utility x2 3096 | -4/Factory | Spotted B-86 Titan 3100 | -4/Factory | Manually triggered Chute Trap 3100 | -4/Factory | Sucked down chute 3100 | -4/Factory | Entered Waste 3109 | -4/Waste | Spotted C-40 Crusher 3117 | -4/Waste | Spotted C-40 Crusher 3117 | -4/Waste | Spotted C-40 Crusher 3123 | -4/Waste | Spotted C-40 Crusher 3127 | -4/Waste | Spotted C-40 Crusher 3130 | -4/Waste | Spotted C-40 Crusher 3143 | -4/Waste | Discovered new exit (range 10) 3146 | -4/Waste | Identified exit to Factory 3146 | -4/Waste | Entered Factory 3160 | -4/Factory | Allied Derelicts emerged from ambush trap array 3224 | -4/Factory | Discovered new exit (range 3) 3225 | -4/Factory | Identified exit to Research 3252 | -4/Factory | Fabricated Lgt. Regenerative Plating? 3334 | -4/Factory | Discovered exit to Research (range 13) 3415 | -4/Factory | Lost 6 parts (6u) 3531 | -4/Factory | Core integrity fell below 50% 3545 | -4/Factory | Local fabrication network quarantined 3552 | -4/Factory | Core integrity fell below 20% 3576 | -4/Factory | Destroyed by H-71 Marshal with Heavy Mass Driver Last Messages --------------- 03542_ Lgt. Regenerative Plating destroyed. 03545_ ALERT: Fabrication network compromised, local systems quarantined. 03551_ Acquired Imp. Surge Thruster. 03551_ Imp. Surge Thruster destroyed. 03553_ Acquired 32 matter. 03561_ U-05 Engineer lays Concrete. 03563_ U-05 Engineer builds a Wall. 03564_ U-05 Engineer lays Concrete. 03565_ U-05 Engineer builds a Wall. 03566_ Acquired 65 matter. 03567_ U-05 Engineer lays Concrete. 03567_ Acquired Imp. Surge Thruster. 03568_ U-05 Engineer builds a Wall. 03569_ U-05 Engineer lays Concrete. 03569_ K-01 Serf cleans the Construction Platform. 03569_ U-05 Engineer lays Concrete. 03574_ Penetrated by Slug. 03574_ Backup Laser I destroyed. 03574_ Imp. Surge Thruster destroyed. 03575_ Acquired 49 matter. Map ----- +----------------------------------------------------+ | ### ! #????????????? # | | ??#### #???????????""""""" # """"""" | | #??????????? # | | ##### #???????????""""""" # """"""" | | ? #???# #????????????? # | | ? !! ???### ###?????????????""" = # """"""" | | ??!! ???# #??????????????? ??# | | ??? ????# "" #?????????????####+##### """"""" | | ????" ?????# T #?????????????# ## | | ????????????# #?????????????# ########## | | ????????????#! #?????????????# !! ##*=# | | ????????????## ################ !% | | ?????????????# % ## ## == ##*[ | | ?????????????# ## ## = ##!## | | ????????????## ## ## # ### | | ????????????# ## ## #?? | | ????????????# # ## ###?? | | ????????????# # # #???? | | ????????????# < + # %! #???? | | ????????????# # # ##?## | | ????????????#! % # ! ! ## """" ### | | ????????????### ### # """" | | ??????????????# #?# # """" | | ????????????### ### ## """" | | ????????????# ############### """" """ | | ?????????#### @ %! """" """ | | ?????????# H % R! """" """ | | ?????????# ## k % ! | | ?????????#??# ##### """ | | ???????????####+###???# """ [ """ | | ???????????# % #???# [ """ """ | | ???????????# #???# """ | | ???????????# """ ##### | | ???????????# """ + | | ???????????# """ ##########+########### | | ???????????# #??????? ????????####+###### | | ???????????########????? ??????# # | | ??????????????????????# ????# """ """ # | | ??????????????????????# #???# """ """ + | | ??????????????????????# #???# """ """ # | | ??????????????????????# #???# # | | ??????????????????????# #???# # | | ??????????????????????# #???# # | | ??????????????????????# #???# ! # | | ??????????????????????# #???########### | | ??????????????????????# #?????????????? | | ??????????????????????# #?????????????? | | ???????????????????????############??????????????? | | | | | +----------------------------------------------------+ Best States ------------- Heat Dissipation 43 Energy Generation 22 Energy Capacity 170 Matter Stores 300 Matter Capacity 300 Sight Range 16 Robot Scan Range 15 Terrain Scan Range 16 Terrain Scan Density 110 Additional Mass Support 16 Armor Coverage 450 Power Shielding 66 Evasion (%) 64 Recoil Reduction 2 Offensive Hacking 10 Defensive Hacking 44 Item Schematics ----------------- Combat Drone Bay | -7/Data Miner | Free Lgt. Regenerative Plating | -7/Data Miner | Free Cmb. Gravmag System | -7/Data Miner | Free Triangulator | -7/Data Miner | Free Exp. Terrain Scan Processor | -7/Data Miner | Free Exp. Transmission Jammer | -7/Data Miner | Free Mni. Smartbomb Launcher | -7/Data Miner | Free Plasma Sword | -7/Data Miner | Free Kinetic Spear | -7/Data Miner | Free Nanoactuators | -6/Extension | Hacked Robot Schematics ------------------ S-27 Virus | -7/Data Miner | Free G-50 Soldier | -7/Data Miner | Free X-72 Disruptor | -7/Data Miner | Free P-70 Sage | -7/Data Miner | Free I-36 Angel | -7/Data Miner | Free I-47 Archangel | -7/Data Miner | Free Fabricated ------------ Lgt. Regenerative Plating | x1 | -4/Factory Alien Tech Used ----------------- None Achievements -------------- None Challenges ------------ None Game ------ Seed SpikedEnhancedReactor Manual? 0 Play Time 01:09:24 Cumulative 597.5 hours Start 2021.08.23 @ 22:06:24 End 2021.08.24 @ 17:02:33 Sessions 5 Manual Loads 0 Difficulty Rogue Special Mode None Game No. 466 Rogue 466 Adventurer 0 Explorer 0 Win Type - Total 157 Types 89/9/42/6/3/2/4/1/1 Lore% 95 Gallery% 93 Achievement% 84 Wizard Run 0 Options --------- ASCII 1 Keyboard 0 Movement Vi Keybinds 0 Fullscreen 0 Font 16/Smallcaps Map View 86x75 Tactical HUD 1 Map Filters NONE Filters NONE Steam 1 RUN: 29498ed9-bb47-4830-a918-1db919bf043c